bitfinex/quotes_ETHUSD_20210701
["timestamp","ask_amount","ask_price","bid_price","bid_amount"]
[1625123803376,3.2191,2160.0,2159.0,9.42150521]
[1625123803576,3.2191,2160.0,2159.1,0.34]
[1625123803680,3.2191,2160.0,2159.4,6.94041]
[1625123803778,10.6968,2160.4,2159.4,6.94041]
[1625123803881,6.94069,2160.6,2159.4,7.08041]
[1625123803979,6.94069,2160.6,2159.4,13.99148219]
[1625123804078,21.1687,2160.7,2159.4,9.18159022]
[1625123804179,10.3213,2160.7,2159.4,7.60149022]
[1625123804279,10.3575,2161.0,2159.4,7.60149022]
[1625123804378,17.87648485,2160.9,2159.4,7.60149022]
[1625123804481,17.87648485,2160.9,2159.4,0.52108022]
[1625123804578,3.47103,2160.8,2159.4,0.51196653]
[1625123804681,10.18653,2160.8,2159.4,0.51196653]
[1625123805079,6.94198,2160.2,2159.2,7.13742546]
[1625123805229,6.94198,2160.2,2159.1,17.68622653]
[1625123805329,5.01,2160.0,2159.1,17.68622653]
[1625123805503,5.01,2160.0,2159.1,9.13232653]
[1625123805702,5.01,2160.3,2159.1,2.19096653]
[1625123805803,5.01,2160.3,2159.2,0.14]
[1625123805903,5.01,2160.3,2159.2,0.26]
[1625123806003,5.01,2160.5,2159.2,0.26]
[1625123806203,5.01,2160.5,2159.2,0.14]
[1625123806405,11.95116,2160.5,2159.2,0.14]
[1625123806609,11.95116,2160.5,2159.0,0.51196653]
[1625123806705,5.21860977,2160.4,2159.0,0.51196653]
[1625123806903,5.01,2160.3,2159.0,0.51196653]
[1625123807303,5.12357951,2160.3,2158.8,10.66436653]
[1625123807406,12.14771517,2160.2,2158.8,10.66436653]
[1625123807508,6.9434,2159.8,2158.8,10.66436653]
[1625123807605,5.01,2159.6,2158.8,0.51196653]
[1625123808457,5.01,2159.6,2158.4,7.03152945]
[1625123808553,5.01,2159.6,2158.2,18.14551013]
[1625123808554,5.13498046,2159.6,2158.2,18.14551013]
[1625123808655,6.94447,2159.4,2158.3,6.944]
[1625123808755,6.94447,2159.4,2158.3,7.044]
[1625123808855,5.01,2159.2,2158.3,7.044]
[1625123809060,6.94447,2159.4,2158.5,5.01]
[1625123809163,3.2142,2159.5,2158.5,5.01]
[1625123809258,3.2142,2159.5,2158.4,0.04]
[1625123809362,5.01,2159.3,2158.4,0.04]
[1625123809458,9.3375,2159.3,2158.2,11.5089]
[1625123810560,9.3375,2159.3,2158.4,6.94377]
[1625123811357,4.3275,2159.3,2158.4,6.94377]
[1625123811459,6.94431,2159.5,2158.4,6.94377]
[1625123811560,3.05264939,2163.1,2158.5,0.04]
[1625123811561,17.11782,2159.8,2158.5,0.04]
[1625123811667,17.11782,2159.8,2158.6,5.01]
[1625123811761,17.11782,2159.8,2158.5,3.64056044]
[1625123811861,17.11782,2159.8,2158.7,0.04]
[1625123812160,17.11782,2159.8,2158.5,7.08424209]
[1625123812300,17.11782,2159.8,2158.3,7.22241021]
[1625123812398,17.11782,2159.8,2158.3,8.84881021]
[1625123812698,17.11782,2159.8,2158.3,7.22241021]
[1625123812799,17.11782,2159.8,2158.5,9.25724]
[1625123812899,17.11782,2159.8,2158.3,7.22241021]
[1625123813206,25.11782,2159.8,2158.2,18.3122187]
[1625123813302,0.15051619,2159.7,2158.2,11.3689]
[1625123813400,10.90278299,2159.7,2158.2,11.3689]
[1625123813500,5.01,2159.5,2158.2,11.3689]
[1625123813598,0.14092898,2159.4,2158.2,0.9]
[1625123813950,5.15092898,2159.4,2158.2,0.9]
[1625123814052,5.01,2159.3,2158.2,0.9]
[1625123814151,0.12165737,2159.3,2158.2,0.9]
[1625123814254,5.8438,2159.4,2158.2,0.9]
[1625123814457,6.94587,2159.0,2158.2,0.9]
[1625123814871,4.20191609,2159.0,2158.2,0.9]
[1625123816524,18.1,2158.8,2158.0,6.94539]
[1625123816627,18.1,2158.8,2157.6,1.69687028]
[1625123816628,23.11,2158.8,2157.6,1.69687028]
[1625123816816,5.19220675,2158.7,2157.6,1.69687028]
[1625123816914,5.19220675,2158.7,2157.4,13.1413568]
[1625123816915,5.02129833,2158.6,2157.4,10.57]
[1625123817010,11.46411445,2158.5,2157.4,10.57]
[1625123817109,10.23371445,2158.5,2157.1,0.13537326]
[1625123817210,10.24752187,2158.5,2157.1,0.13537326]
[1625123817312,5.02325137,2158.3,2157.0,20.93755826]
[1625123817409,6.65006657,2158.2,2157.0,10.55265826]
[1625123817513,6.65006657,2158.2,2157.0,0.13535826]
[1625123817611,0.17142102,2158.1,2156.8,3.4741074]
[1625123817710,0.18461365,2158.1,2156.8,3.4741074]
[1625123817812,0.18461365,2158.1,2156.9,0.13548257]
[1625123817908,6.9491,2157.7,2156.9,0.13548257]
[1625123818007,10.167,2157.7,2156.9,0.13548257]
[1625123818312,6.04991183,2157.7,2156.9,0.13548257]
[1625123819086,6.04991183,2157.7,2156.8,3.60952784]
[1625123819176,11.98657549,2157.7,2156.8,3.60952784]
[1625123819373,6.04991183,2157.7,2156.8,3.60952784]
[1625123819573,11.99279376,2157.7,2156.8,3.60952784]
[1625123819685,12.01964496,2157.7,2156.9,0.13550885]
[1625123819772,12.01269796,2157.7,2156.9,0.13550885]
[1625123819872,6.04991183,2157.7,2156.9,0.13550885]
[1625123820775,6.04991183,2157.7,2157.0,5.01]
[1625123820875,5.98326707,2157.6,2157.0,5.01]
[1625123821075,6.04991183,2157.7,2157.0,5.01]
[1625123821300,6.04991183,2157.7,2156.9,0.13550885]
[1625123821602,5.96340453,2157.6,2156.9,0.13550885]
[1625123821816,5.96340453,2157.6,2156.6,0.13548937]
[1625123822006,2.3549,2157.8,2156.7,5.01]
[1625123822007,5.01,2157.7,2156.7,5.01]
[1625123822203,8.29010663,2157.8,2156.6,5.01]
[1625123822509,6.9504,2157.4,2156.6,5.01]
[1625123822604,10.5577,2157.4,2156.6,5.01]
[1625123822704,5.96994249,2157.3,2156.5,0.13549395]
[1625123822907,8.6173,2157.4,2156.5,0.13549395]
[1625123823106,5.01,2157.2,2156.5,0.13549395]
[1625123823311,10.94645075,2157.1,2156.5,0.13549395]
[1625123823572,10.94645075,2157.1,2156.5,6.85]
[1625123823664,5.01,2157.1,2156.5,6.85]
[1625123824364,20.35,2157.0,2156.1,7.08156752]
[1625123824471,6.95247,2156.8,2155.9,0.13539262]
[1625123824565,9.542,2156.8,2155.9,0.13539262]
[1625123824665,0.15939028,2156.7,2155.9,0.13539262]
[1625123825021,5.16939028,2156.7,2155.7,0.13541314]
[1625123825118,5.01,2156.6,2155.7,0.13541314]
[1625123825221,5.12388858,2156.6,2155.7,6.98541314]
[1625123825320,5.01,2156.5,2155.7,6.98541314]
[1625123825422,5.01,2156.6,2155.7,6.85]
[1625123826051,6.9547,2156.1,2155.7,6.85]
[1625123826152,5.01,2155.9,2155.7,6.85]
[1625123826253,6.9547,2156.1,2155.7,6.85]
[1625123826254,11.08035447,2156.1,2155.7,6.85]
[1625123826454,0.31072161,2156.0,2155.7,6.85]
[1625123827056,6.95701,2155.9,2155.7,6.85]
[1625123827155,20.01035533,2155.8,2155.7,6.85]
[1625123827353,13.8,2155.8,2155.7,6.85]
[1625123827453,19.73490057,2155.8,2155.7,6.85]
[1625123827553,19.83490057,2155.8,2155.7,6.85]
[1625123828115,19.83490057,2155.8,2154.9,10.28]
[1625123828216,5.01,2155.6,2154.9,10.28]
[1625123828313,0.29889881,2155.4,2154.9,10.28]
[1625123828415,6.06866532,2155.2,2154.9,10.28]
[1625123828512,0.79099145,2155.1,2153.9,10.3667]
[1625123828623,0.79099145,2155.2,2155.1,0.01635033]
[1625123828715,0.2728531,2155.1,2153.8,27.2]
[1625123828815,0.01387128,2155.0,2153.8,27.2]
[1625123828915,0.08,2155.1,2153.8,27.2]
[1625123829117,6.95679791,2155.2,2153.8,27.2]
[1625123829318,6.95944,2154.9,2153.8,27.2]
[1625123829417,6.24582656,2154.8,2153.8,27.2]
[1625123829516,6.29961779,2154.8,2153.8,27.2]
[1625123829617,6.29961779,2154.8,2153.7,6.85]
[1625123829618,0.21316005,2154.7,2153.7,6.85]
[1625123829818,0.34474159,2154.7,2153.7,6.85]
[1625123830115,5.01,2154.6,2153.7,6.85]
[1625123830216,0.12702782,2154.5,2153.7,6.85]
[1625123830384,6.39523104,2154.5,2153.7,6.85]
[1625123830483,0.12702782,2154.5,2153.7,6.85]
[1625123830583,6.03248185,2154.5,2153.7,6.85]
[1625123830886,11.43850934,2154.6,2153.7,6.85]
[1625123830984,13.24142481,2154.5,2153.7,6.85]
[1625123831088,5.90673524,2154.4,2153.7,6.85]
[1625123831184,6.02152675,2154.4,2153.7,6.85]
[1625123831486,6.96124,2154.5,2153.7,6.85]
[1625123831688,6.6518134,2154.8,2153.7,6.85]
[1625123831885,6.6518134,2154.8,2153.7,6.80627836]
[1625123831988,9.27997,2155.0,2153.7,6.80627836]
[1625123832189,9.27997,2155.0,2153.7,0.00627836]
[1625123832190,6.35905377,2154.9,2153.7,0.00627836]
[1625123832286,6.96055,2154.8,2153.7,0.00627836]
[1625123832386,11.03100435,2154.7,2153.7,0.00627836]
[1625123832661,6.9668706,2154.5,2153.2,6.85]
[1625123832755,6.97847864,2154.5,2153.2,6.85]
[1625123833056,6.77523017,2154.5,2153.2,6.85]
[1625123833161,0.01116241,2154.7,2153.2,6.85]
[1625123833258,4.11205727,2154.9,2153.3,3.43888634]
[1625123833361,19.43404396,2155.0,2153.3,0.2]
[1625123833457,6.18931772,2154.8,2153.3,0.2]
[1625123833559,6.18931772,2154.8,2153.2,6.85]
[1625123833560,6.96069,2154.7,2153.2,6.85]
[1625123833657,6.1651958,2154.6,2153.6,0.01]
[1625123833761,6.96069,2154.7,2153.6,0.01]
[1625123833976,6.10145909,2154.6,2153.6,0.01]
[1625123834158,6.96069,2154.7,2153.6,0.01]
[1625123834257,6.15985805,2154.6,2153.6,0.01]
[1625123834358,7.40700744,2154.9,2153.6,0.01]
[1625123834656,6.99898954,2155.2,2153.6,0.01]
[1625123835091,20.1378,2155.3,2153.6,0.004]
[1625123835391,20.1378,2155.3,2153.7,5.01]
[1625123835496,5.86240538,2155.2,2153.7,5.01]
[1625123835593,10.0156,2155.3,2153.7,5.01]
[1625123835694,5.90502399,2155.2,2153.7,5.01]
[1625123835791,5.90502399,2155.2,2153.6,7.31628928]
[1625123835895,5.90502399,2155.2,2153.6,2.30628928]
[1625123836094,5.90502399,2155.2,2153.8,5.01]
[1625123836195,5.90502399,2155.2,2153.6,7.31628928]
[1625123836291,5.90502399,2155.2,2153.6,5.014]
[1625123836798,12.86418399,2155.2,2153.6,5.014]
[1625123838664,5.01,2155.0,2153.6,0.004]
[1625123838764,0.14211872,2154.9,2153.8,5.01]
[1625123838864,5.01,2154.9,2153.8,5.01]
[1625123838969,5.01,2155.0,2153.6,12.70936203]
[1625123839070,4.3335,2155.1,2153.7,6.86843717]
[1625123839166,4.3335,2155.1,2153.8,5.01]
[1625123839268,4.3335,2155.1,2153.6,7.23461574]
[1625123839407,4.3335,2155.1,2154.0,5.01]
[1625123839511,6.28126959,2154.9,2154.0,5.01]
[1625123839606,6.28126959,2154.9,2154.1,5.01]
[1625123839908,4.3335,2155.1,2154.1,5.01]
[1625123840098,6.29861238,2155.0,2154.1,5.01]
[1625123840199,6.3271302,2155.0,2154.1,5.01]
[1625123841099,15.6,2155.1,2154.1,5.01]
[1625123841297,15.6,2155.1,2154.2,6.84303389]
[1625123841399,15.6,2155.1,2154.1,5.01]
[1625123841627,13.0,2155.1,2153.7,5.01]
[1625123841827,6.09224867,2155.0,2153.7,5.01]
[1625123841926,13.0,2155.1,2153.7,5.01]
[1625123841927,6.96002,2154.9,2153.7,5.01]
[1625123842032,13.0,2155.1,2153.7,5.01]
[1625123842128,13.0,2155.1,2153.8,12.09814783]
[1625123842230,13.0,2155.1,2153.7,5.01]
[1625123842231,6.06134569,2155.0,2153.7,5.01]
[1625123842330,13.0,2155.1,2153.7,5.01]
[1625123842730,7.08184138,2155.0,2153.7,5.01]
[1625123843028,6.12722618,2155.0,2153.7,5.01]
[1625123843229,6.16905116,2155.0,2153.7,5.01]
[1625123843879,13.0,2155.1,2153.8,6.8041787]
[1625123843981,6.9595,2155.0,2153.7,5.01]
[1625123844078,6.22805576,2154.9,2153.7,5.01]
[1625123844181,6.9595,2155.0,2153.8,6.6512584]
[1625123844384,6.9595,2155.0,2154.0,5.01]
[1625123844481,6.9595,2155.0,2153.9,5.01]
[1625123844684,6.9595,2155.0,2154.0,6.60821326]
[1625123844781,6.9595,2155.0,2153.9,5.01]
[1625123844985,6.9595,2155.0,2154.0,11.69312457]
[1625123845085,6.9595,2155.0,2154.0,6.68055436]
[1625123845180,6.9595,2155.0,2154.2,5.01]
[1625123845582,6.9595,2155.0,2154.0,5.01]
[1625123845781,6.9595,2155.0,2153.7,5.01]
[1625123846123,6.9595,2155.0,2153.7,11.86]
[1625123846228,7.19815005,2154.9,2153.7,11.86]
[1625123846428,8.0,2155.0,2153.7,11.86]
[1625123846529,15.21587796,2155.0,2153.7,11.86]
[1625123846629,9.3595,2155.0,2153.7,11.86]
[1625123846727,5.01,2154.8,2153.7,6.85]
[1625123846831,5.01,2154.7,2153.7,6.85]
[1625123846929,2.26131353,2154.7,2153.7,6.85]
[1625123847029,8.0,2154.8,2153.7,6.85]
[1625123847227,1.1004,2154.9,2153.8,7.6166551]
[1625123847329,10.38074,2154.9,2153.8,7.6166551]
[1625123847628,1.1004,2154.9,2153.8,7.6166551]
[1625123847730,1.1004,2154.9,2153.8,11.4653551]
[1625123847928,1.1004,2154.9,2153.9,2.58484]
[1625123848032,13.0,2155.1,2153.9,2.58484]
[1625123848131,13.0,2155.1,2154.0,12.91633616]
[1625123848228,13.0,2155.1,2154.1,5.01]
[1625123848388,13.0,2155.1,2154.2,7.61944646]
[1625123848585,13.0,2155.1,2154.4,5.01]
[1625123848684,13.0,2155.1,2154.5,6.88308276]
[1625123848988,6.9593,2155.0,2154.4,4.0823]
[1625123849092,6.9593,2155.0,2154.6,5.01]
[1625123849194,6.9593,2155.0,2154.3,5.01]
[1625123849294,5.99732124,2154.9,2154.3,5.01]
[1625123849390,5.99732124,2154.9,2154.1,5.01]
[1625123849493,5.99732124,2154.9,2153.9,5.01]
[1625123849690,13.0,2155.1,2153.9,5.01]
[1625123849891,13.0,2155.1,2154.0,1.49969516]
[1625123849992,13.0,2155.1,2153.9,5.01]
[1625123850190,13.0,2155.1,2153.8,5.01]
[1625123850390,6.37972824,2155.0,2153.8,5.01]
[1625123850636,13.0,2155.1,2153.8,5.01]
[1625123850730,5.914866,2155.0,2153.8,5.01]
[1625123850826,13.0,2155.1,2153.8,5.01]
[1625123850928,6.95988,2154.8,2153.8,5.01]
[1625123851128,13.0,2155.1,2153.8,5.01]
[1625123851228,13.0,2155.1,2153.9,12.33254546]
[1625123851333,13.0,2155.1,2153.9,9.7234]
[1625123851428,13.0,2155.1,2154.0,12.49172958]
[1625123851628,13.0,2155.1,2154.1,5.01]
[1625123851728,13.0,2155.1,2154.1,12.43291037]
[1625123851828,13.0,2155.1,2154.4,5.01]
[1625123851930,13.0,2155.1,2154.4,9.3916]
[1625123852034,13.0,2155.1,2154.5,7.08382148]
[1625123852130,13.0,2155.1,2154.4,4.3816]
[1625123852228,13.0,2155.1,2154.6,5.01]
[1625123852329,19.95853,2155.1,2154.7,5.01]
[1625123852634,19.95853,2155.1,2154.3,5.01]
[1625123852734,6.31507183,2155.0,2153.6,10.8008]
[1625123853176,21.0,2155.1,2153.6,10.8008]
[1625123853377,5.92943868,2155.0,2153.6,10.8008]
[1625123853476,6.34656961,2155.0,2153.6,10.8008]
[1625123853576,6.37329583,2155.0,2153.6,10.8008]
[1625123853927,6.96012,2154.6,2153.6,10.8008]
[1625123854228,6.96012,2154.6,2153.6,0.004]
[1625123854827,6.96012,2154.6,2153.7,5.01]
[1625123855118,21.0,2155.1,2153.7,12.02928]
[1625123855221,21.0,2155.1,2153.8,14.86104401]
[1625123855320,5.74942915,2155.0,2153.9,5.01]
[1625123855419,5.74942915,2155.0,2153.8,12.22034]
[1625123855519,5.74942915,2155.0,2153.8,5.01]
[1625123855620,21.0,2155.1,2153.8,5.01]
[1625123855717,21.0,2155.1,2153.9,7.88704725]
[1625123855914,21.0,2155.1,2154.1,5.01]
[1625123856107,21.0,2155.1,2153.7,5.01]
[1625123856208,26.84288934,2155.1,2153.8,5.01]
[1625123856407,26.95119447,2155.1,2153.7,5.01]
[1625123856515,6.95971,2154.6,2153.7,14.28825]
[1625123856612,6.45063188,2154.5,2153.7,14.28825]
[1625123856709,6.95971,2154.6,2153.7,14.28825]
[1625123857009,6.95971,2154.6,2153.7,5.01]
[1625123857511,9.27942,2154.9,2153.7,5.01]
[1625123857615,6.95912,2154.7,2153.7,11.96942]
[1625123857812,6.95912,2154.7,2153.8,5.01]
[1625123857909,6.95912,2154.7,2153.9,5.01]
[1625123858255,6.95912,2154.7,2153.9,11.86]
[1625123859459,6.95912,2154.7,2154.0,7.42949258]
[1625123859558,6.95912,2154.7,2153.9,11.86]
[1625123859659,6.95912,2154.7,2154.1,0.14]
[1625123859857,6.95912,2154.7,2153.9,11.86]
[1625123860485,6.95912,2154.7,2153.9,12.3719044]
[1625123860585,5.91733807,2154.6,2154.0,5.01]
[1625123860686,6.0053412,2154.6,2154.0,5.01]
[1625123860787,6.0053412,2154.6,2154.1,5.01]
[1625123860888,6.02730771,2154.8,2154.1,5.01]
[1625123861185,12.75913,2154.9,2154.1,5.01]
[1625123861285,12.75913,2154.9,2153.9,0.5119044]
[1625123861387,6.96001,2154.4,2153.9,0.5119044]
[1625123861487,6.96001,2154.4,2153.7,5.01]
[1625123861788,9.27983,2154.7,2153.7,5.01]
[1625123861890,5.88121119,2154.6,2153.7,5.01]
[1625123862051,9.27983,2154.7,2153.8,0.12]
[1625123862189,9.27983,2154.7,2153.8,2.50484]
[1625123862389,9.27983,2154.7,2154.0,5.01]
[1625123862736,9.27983,2154.7,2153.7,5.15]
[1625123862833,9.27983,2154.7,2153.8,5.01]
[1625123862936,5.83111223,2154.6,2153.7,5.15]
[1625123863035,9.27983,2154.7,2153.7,5.15]
[1625123863234,6.95881,2154.8,2154.0,6.95881]
[1625123863335,3.47971,2154.9,2154.2,5.01]
[1625123864038,3.47971,2154.9,2154.0,6.95881]
[1625123864146,3.47971,2154.9,2153.7,9.27855]
[1625123864147,6.71239376,2154.8,2153.7,9.27855]
[1625123864242,15.99180376,2154.8,2153.6,0.004]
[1625123864339,0.14106572,2154.7,2153.6,0.004]
[1625123864438,14.9492567,2154.8,2153.6,0.004]
[1625123864547,0.04,2154.6,2153.6,0.004]
[1625123864744,3.4813,2154.5,2153.6,0.004]
[1625123864901,8.1802906,2154.3,2153.6,0.004]
[1625123865002,6.96972218,2154.2,2153.6,0.004]
[1625123865201,27.42,2154.1,2153.1,6.85]
[1625123865301,5.01,2154.0,2153.1,6.85]
[1625123865397,3.48231,2153.6,2153.1,6.85]
[1625123865498,6.17649884,2153.5,2153.1,6.85]
[1625123865894,3.42669283,2153.5,2153.1,6.85]
[1625123865993,10.99331,2153.6,2153.1,6.85]
[1625123866294,18.99331,2153.6,2153.1,6.85]
[1625123866395,18.99331,2153.6,2152.5,10.0527]
[1625123866503,18.99331,2153.6,2152.4,10.3766]
[1625123866601,6.96494,2153.1,2152.4,10.3766]
[1625123866697,10.24354,2153.1,2152.6,5.01]
[1625123866798,14.30475026,2153.1,2151.7,21.10795362]
[1625123866897,14.26142704,2153.1,2151.7,10.99315362]
[1625123866998,0.19582991,2153.0,2151.7,10.99315362]
[1625123867206,5.18769851,2153.0,2151.7,17.84315362]
[1625123867405,14.69856,2153.1,2151.7,17.84315362]
[1625123867700,5.30447976,2153.0,2151.7,17.84315362]
[1625123868006,6.96596,2152.6,2151.8,6.73963172]
[1625123868109,9.28801,2152.8,2151.8,6.73963172]
[1625123868202,10.44786,2153.1,2152.8,4.12515419]
[1625123868305,10.44786,2153.1,2151.8,6.73963172]
[1625123868402,10.44786,2153.1,2151.8,6.79963172]
[1625123868504,3.48292,2153.1,2151.8,6.79963172]
[1625123869005,3.48292,2153.1,2151.8,6.73963172]
[1625123869109,3.48292,2153.1,2151.7,9.55265854]
[1625123869205,3.48292,2153.1,2151.9,7.37746972]
[1625123869427,9.28695,2153.0,2151.9,14.34233972]
[1625123869509,3.48292,2153.1,2151.9,14.34233972]
[1625123869607,3.48292,2153.1,2152.1,5.01]
[1625123869812,3.48292,2153.1,2152.2,6.5597496]
[1625123870225,13.67137,2153.5,2152.4,5.01]
[1625123870285,3.48217,2153.5,2152.5,8.00720492]
[1625123870386,3.48217,2153.5,2152.7,5.01]
[1625123870488,6.96407,2153.2,2152.8,8.50867681]
[1625123870588,12.76721,2153.5,2152.8,8.50867681]
[1625123870689,13.37989,2154.0,2152.8,8.50867681]
[1625123870788,3.48149,2154.0,2153.0,5.01]
[1625123870885,3.48149,2154.0,2153.1,7.99688662]
[1625123870986,3.48149,2154.0,2153.1,11.91378662]
[1625123871084,3.48149,2154.0,2153.3,5.01]
[1625123871288,3.48149,2154.0,2153.4,7.5579752]
[1625123871389,9.895,2154.5,2153.6,5.01]
[1625123871489,6.96084,2154.2,2153.7,6.87458396]
[1625123871685,22.32733,2154.7,2153.7,6.87458396]
[1625123871686,10.7229,2154.7,2153.7,6.87458396]
[1625123871766,10.7229,2154.7,2153.5,5.01]
[1625123871870,13.0,2155.1,2153.3,5.01]
[1625123871964,10.5645,2154.9,2153.4,7.15201225]
[1625123872264,10.5645,2154.9,2153.6,5.01]
[1625123872664,16.4807,2155.1,2153.3,5.01]
[1625123872766,6.961779,2154.6,2153.4,5.01]
[1625123872869,6.96126,2154.1,2153.1,6.96094]
[1625123872966,6.96126,2154.1,2153.5,5.01]
[1625123873068,6.96126,2154.1,2153.1,5.01]
[1625123873265,6.96126,2154.1,2153.2,7.03936029]
[1625123873370,3.48076,2154.0,2153.2,5.01]
[1625123873671,3.48076,2154.0,2153.0,5.01]
[1625123873895,6.96197,2153.6,2153.0,5.01]
[1625123873997,6.96197,2153.6,2152.8,0.14]
[1625123875291,6.96197,2153.6,2152.1,17.71535234]
[1625123875392,6.93352093,2153.5,2152.1,17.71535234]
[1625123875491,6.93352093,2153.5,2152.2,0.14]
[1625123875492,0.16998131,2153.5,2152.2,0.14]
[1625123875595,0.16998131,2153.5,2152.2,7.29076434]
[1625123875695,4.46295,2153.7,2152.2,9.74716926]
[1625123875696,3.48135,2153.7,2152.2,9.74716926]
[1625123875898,3.48135,2153.7,2152.3,0.2]
[1625123876155,10.44289,2153.7,2152.4,0.14]
[1625123876258,6.96154,2153.7,2152.4,2.31640492]
[1625123876359,9.28291,2154.1,2152.5,0.14]
[1625123876458,9.28291,2154.1,2152.6,0.12]
[1625123876557,9.28291,2154.1,2152.7,5.01]
[1625123876660,9.28291,2154.1,2152.7,10.0002]
[1625123876758,9.28291,2154.1,2152.8,5.74983013]
[1625123876857,9.28291,2154.1,2153.0,5.01]
[1625123876957,9.28291,2154.1,2152.9,0.14]
[1625123877058,9.28291,2154.1,2153.1,6.01415583]
[1625123877157,9.28291,2154.1,2152.9,0.14]
[1625123877257,9.28291,2154.1,2152.9,6.65132736]
[1625123877358,9.28291,2154.1,2153.1,5.01]
[1625123877658,6.96141,2153.8,2153.1,5.01]
[1625123877758,9.28291,2154.1,2152.9,7.46922659]
[1625123877862,9.28291,2154.1,2153.1,5.01]
[1625123878057,9.28291,2154.1,2152.9,0.14]
[1625123878058,9.28291,2154.1,2153.0,5.01]
[1625123878802,6.96135,2153.9,2153.1,7.41727258]
[1625123878901,6.96135,2153.9,2153.1,7.4140572]
[1625123879106,6.96135,2153.9,2153.3,5.01]
[1625123879203,6.96135,2153.9,2153.1,5.01]
[1625123879403,9.28291,2154.1,2153.1,0.08]
[1625123879404,6.52909976,2153.8,2153.1,0.08]
[1625123879506,6.52909976,2153.8,2152.8,0.5119044]
[1625123879904,6.52909976,2153.8,2152.2,17.7001]
[1625123879905,6.96443,2153.1,2152.3,9.86463121]
[1625123880005,6.96443,2153.1,2152.3,1.69687028]
[1625123880204,5.99140447,2153.0,2152.3,1.69687028]
[1625123880302,6.96443,2153.1,2152.4,27.3]
[1625123880303,6.08117995,2153.1,2152.4,27.3]
[1625123880407,6.08117995,2153.1,2152.4,33.89788299]
[1625123880502,6.08117995,2153.1,2152.4,27.3]
[1625123880641,1.95612665,2153.1,2152.4,27.3]
[1625123880939,6.96443,2153.1,2152.5,26.3119044]
[1625123881038,6.96443,2153.1,2152.6,6.91995316]
[1625123881141,34.6807372,2153.8,2152.6,7.0469932]
[1625123881242,20.9631,2153.8,2152.5,25.8]
[1625123881343,20.9631,2153.8,2152.6,6.41817636]
[1625123881443,20.9631,2153.8,2152.5,25.8]
[1625123881941,20.9631,2153.8,2152.6,0.5119044]
[1625123882040,20.9631,2153.8,2152.6,7.03406362]
[1625123882142,20.9631,2153.8,2152.6,0.5119044]
[1625123882244,20.9631,2153.8,2152.8,5.01]
[1625123882342,6.96301,2153.3,2152.7,5.01]
[1625123882742,6.96301,2153.3,2152.8,11.43191334]
[1625123882900,6.96301,2153.3,2152.8,11.61085505]
[1625123882989,6.96301,2153.3,2152.8,5.01]
[1625123883089,6.96301,2153.3,2152.7,5.01]
[1625123883194,6.96301,2153.3,2152.8,5.01]
[1625123883293,6.96301,2153.3,2152.8,11.45150808]
[1625123883499,3.48176,2153.8,2152.8,11.45150808]
[1625123883645,4.64285,2153.9,2152.9,0.14]
[1625123883849,4.64285,2153.9,2152.9,5.15]
[1625123883943,4.64285,2153.9,2153.0,11.57763424]
[1625123884169,4.64285,2153.9,2153.0,11.71763424]
[1625123884545,11.60417,2153.9,2153.0,11.71763424]
[1625123884743,11.60417,2153.9,2153.1,5.01]
[1625123884845,11.60417,2153.9,2153.2,12.62506904]
[1625123884946,11.60745,2154.0,2153.2,12.62506904]
[1625123885043,10.8169,2154.2,2153.2,12.62506904]
[1625123885243,15.0859,2154.4,2153.2,15.97006904]
[1625123885332,11.60487,2154.4,2153.2,15.97006904]
[1625123885528,6.96082,2154.1,2153.2,15.97006904]
[1625123885728,3.48047,2154.3,2153.2,16.48197344]
[1625123885943,3.48047,2154.3,2153.3,0.12]
[1625123886124,3.48047,2154.3,2153.3,0.14]
[1625123886723,6.15310116,2154.2,2153.4,2.50270609]
[1625123886821,3.48047,2154.3,2153.6,5.01]
[1625123887021,9.75103144,2154.3,2153.4,5.01]
[1625123887224,3.48047,2154.3,2153.4,5.01]
[1625123887923,6.96076,2154.2,2153.4,5.01]
[1625123888241,6.04235638,2154.1,2153.4,5.01]
[1625123888341,6.0490577,2154.1,2153.4,5.01]
[1625123888442,6.91076,2154.2,2153.4,5.01]
[1625123889343,6.91076,2154.2,2153.5,7.13257531]
[1625123889445,6.91076,2154.2,2153.4,5.01]
[1625123889843,6.91076,2154.2,2153.3,12.11012]
[1625123890243,6.91076,2154.2,2153.3,18.96012]
[1625123890599,6.22403392,2154.1,2153.3,18.96012]
[1625123890698,6.34207134,2154.2,2153.3,6.99]
[1625123890897,11.60487,2154.4,2153.3,6.99]
[1625123891000,6.31503871,2154.2,2153.3,6.99]
[1625123891100,11.60487,2154.4,2153.3,0.14]
[1625123891699,3.48078,2154.0,2153.3,0.14]
[1625123891901,6.96146,2153.9,2153.4,2.44795609]
[1625123892100,3.48078,2154.0,2153.4,2.44795609]
[1625123892204,3.48078,2154.0,2153.1,6.96091]
[1625123892302,3.48078,2154.0,2153.2,0.06]
[1625123892656,3.48078,2154.0,2153.3,0.04]
[1625123892950,10.44187,2154.0,2153.3,0.04]
[1625123893049,10.44187,2154.0,2153.1,6.96091]
[1625123893150,3.48078,2154.0,2153.1,6.96091]
[1625123893251,6.30905217,2153.9,2153.1,6.96091]
[1625123893351,6.30905217,2153.9,2152.9,9.28107]